fUSD/lending_fUSD_20260429
["ID","MTS","AMOUNT","RATE_DAILY","PERIOD"]
[421312967,1777403438027,-284.66103224,0.00011099,2]
[421312968,1777403438037,-2715.33896776,0.00011099,2]
[421312969,1777403438048,-2938.21084101,0.00011099,2]
[421312970,1777403438058,-5653.54980877,0.00011099,2]
[421312971,1777403438067,-5653.54980877,0.00011099,2]
[421312972,1777403438077,-3555.14925727,0.00011099,2]
[421312973,1777403438088,-2098.4005515,0.00011099,2]
[421312974,1777403438098,-29.16845878,0.00011099,2]
[421313102,1777403440051,-5624.38134999,0.00011099,2]
[421313103,1777403440060,-5653.54980877,0.00011099,2]
[421313104,1777403440070,-150.0,0.00011143,2]
[421313105,1777403440079,-5653.54980877,0.00011242,2]
[421313106,1777403440088,-150.0,0.00011314,2]
[421313107,1777403440099,-3292.0,0.00011388,2]
[421313108,1777403440108,-150.0,0.00011486,2]
[421313109,1777403440117,-5653.54980877,0.00011571,2]
[421313110,1777403440126,-150.0,0.00011657,2]
[421313111,1777403440136,-150.0,0.00011829,2]
[421313112,1777403440145,-152.59816533,0.000119,2]
[421313113,1777403440155,-154.62877004,0.000119,2]
[421313114,1777403440164,-5000.0,0.000119,2]
[421313115,1777403440174,-5653.54980877,0.000119,2]
[421313116,1777403440183,-154.62877004,0.00011902,2]
[421313117,1777403440193,-154.62877004,0.00011903,2]
[421313118,1777403440202,-154.62877004,0.00011905,2]
[421313119,1777403440423,-250.0,0.00011905,2]
[421313120,1777403440443,-501.39565681,0.00011973,2]
[421313121,1777403440453,-261.20804805,0.00011999,2]
[421313122,1777403440462,-553.31945467,0.00011999,2]
[421313123,1777403440471,-500.0,0.00011999,2]
[421313124,1777403440481,-500.0,0.00011999,2]
[421313125,1777403440490,-450.26978514,0.00011999,2]
[421313126,1777403440500,-1505281.52910833,0.00012,2]
[421313127,1777403440520,-2540.85,0.00012,2]
[421313128,1777403440531,-9954.62348864,0.00012,2]
[421313129,1777403440543,-671.81221062,0.00012,2]
[421313130,1777403440558,-507.18,0.00012,2]
[421313131,1777403440588,-29319.30123661,0.00012,2]
[421313132,1777403440600,-1583.41326918,0.00012,2]
[421313133,1777403440611,-2357.27069278,0.00012,2]
[421313172,1777403442837,-1031.37978219,0.00012,2]
[421313173,1777403442849,-1371.67294542,0.00012,2]
[421313174,1777403442890,-11804.01769063,0.00012,2]
[421313175,1777403442999,-906.17940194,0.00012,2]
[421313176,1777403443054,-680.76275655,0.00012,2]
[421313202,1777403445766,-686.46413676,0.00012,2]
[421313203,1777403445821,-1362.91705858,0.00012,2]
[421313204,1777403446252,-1078.07,0.00012,2]
[421313205,1777403446306,-1544.81794311,0.00012,2]
[421313206,1777403446318,-1123.71239335,0.00012,2]
[421313207,1777403446329,-40421.83526464,0.00012,2]
[421313208,1777403446417,-553.5,0.00012,2]
[421313209,1777403446429,-279.885,0.00012,2]
[421313212,1777403544382,-150.0,8.63e-05,2]
[421313213,1777403544407,-2500.0,8.631e-05,2]
[421313214,1777403544435,-161356.0,8.631e-05,2]
[421313216,1777404307413,6415.31,0.000166,120]
[421313221,1777404632475,-0.863695,8.219e-05,2]
[421313222,1777404632487,-256.136305,8.219e-05,2]
[421313223,1777404632498,-250.0,8.219e-05,2]
[421313224,1777404632508,-280.0,8.219e-05,2]
[421313225,1777404632518,-1200.0,8.529e-05,2]
[421313226,1777404632527,-207.40137915,8.53e-05,2]
[421313227,1777404632537,-150.0,8.53e-05,2]
[421313228,1777404632546,-13786.05954819,8.531e-05,2]
[421313229,1777404632558,-50791.60955181,8.531e-05,2]
[421313230,1777404632567,-37540.02373927,8.621e-05,2]
[421313231,1777404632578,-463.60708434,8.621e-05,2]
[421313232,1777404632590,-454.6082771,8.621e-05,2]
[421313233,1777404632602,-325.277498,8.621e-05,2]
[421313235,1777404637972,-1071.0,8.621e-05,2]
[421313236,1777404637984,-1454.76,8.621e-05,2]
[421313237,1777404638027,-1922.34004422,8.621e-05,2]
[421313238,1777404638039,-667.96197469,8.621e-05,2]
[421313239,1777404638089,-2763.13295198,8.621e-05,2]
[421313240,1777404638099,-681.04,8.63e-05,2]
[421313241,1777404638108,-500.0,8.63e-05,2]
[421313242,1777404638118,-500.0,8.63e-05,2]
[421313243,1777404638129,-500.0,8.63e-05,2]
[421313244,1777404638138,-500.0,8.63e-05,2]
[421313245,1777404638148,-500.0,8.63e-05,2]
[421313246,1777404638157,-500.0,8.63e-05,2]
[421313247,1777404638167,-500.0,8.63e-05,2]
[421313248,1777404638176,-500.0,8.63e-05,2]
[421313249,1777404638185,-500.0,8.63e-05,2]
[421313250,1777404638195,-195.65708576,8.63e-05,2]
[421313251,1777404638204,-500.0,8.63e-05,2]
[421313252,1777404638214,-500.0,8.63e-05,2]
[421313253,1777404638223,-500.0,8.63e-05,2]
[421313254,1777404638232,-500.0,8.63e-05,2]
[421313255,1777404638242,-500.0,8.63e-05,2]
[421313256,1777404638251,-500.0,8.63e-05,2]
[421313257,1777404638260,-500.0,8.63e-05,2]
[421313258,1777404638269,-500.0,8.63e-05,2]
[421313259,1777404638279,-500.0,8.63e-05,2]
[421313260,1777404638288,-500.0,8.63e-05,2]
[421313261,1777404638297,-500.0,8.63e-05,2]
[421313262,1777404638307,-500.0,8.63e-05,2]
[421313263,1777404638316,-500.0,8.63e-05,2]
[421313264,1777404638325,-500.0,8.63e-05,2]
[421313265,1777404638335,-500.0,8.63e-05,2]
[421313266,1777404638344,-500.0,8.63e-05,2]
[421313267,1777404638353,-500.0,8.63e-05,2]
[421313268,1777404638362,-500.0,8.63e-05,2]
[421313269,1777404638372,-500.0,8.63e-05,2]
[421313271,1777404638381,-500.0,8.63e-05,2]
[421313274,1777404638393,-500.0,8.63e-05,2]
[421313276,1777404638403,-500.0,8.63e-05,2]
[421313278,1777404638413,-500.0,8.63e-05,2]
[421313280,1777404638422,-500.0,8.63e-05,2]
[421313282,1777404638431,-500.0,8.63e-05,2]
[421313284,1777404638441,-500.0,8.63e-05,2]
[421313286,1777404638450,-500.0,8.63e-05,2]
[421313288,1777404638460,-500.0,8.63e-05,2]
[421313290,1777404638470,-500.0,8.63e-05,2]
[421313292,1777404638479,-500.0,8.63e-05,2]
[421313294,1777404638489,-500.0,8.63e-05,2]
[421313296,1777404638498,-500.0,8.63e-05,2]
[421313298,1777404638507,-500.0,8.63e-05,2]
[421313300,1777404638518,-500.0,8.63e-05,2]
[421313302,1777404638527,-500.0,8.63e-05,2]
[421313304,1777404638537,-500.0,8.63e-05,2]
[421313306,1777404638547,-500.0,8.63e-05,2]
[421313308,1777404638556,-500.0,8.63e-05,2]
[421313310,1777404638567,-500.0,8.63e-05,2]
[421313312,1777404638576,-542.71015587,8.63e-05,2]
[421313314,1777404638586,-500.0,8.63e-05,2]
[421313315,1777404638595,-500.0,8.63e-05,2]
[421313317,1777404638604,-500.0,8.63e-05,2]
[421313319,1777404638614,-500.0,8.63e-05,2]
[421313320,1777404638624,-500.0,8.63e-05,2]
[421313321,1777404638635,-500.0,8.63e-05,2]
[421313322,1777404638644,-500.0,8.63e-05,2]
[421313323,1777404638654,-500.0,8.63e-05,2]
[421313324,1777404638663,-500.0,8.63e-05,2]
[421313325,1777404638672,-350.0,8.63e-05,2]
[421313326,1777404638682,-500.0,8.63e-05,2]
[421313327,1777404638692,-500.0,8.63e-05,2]
[421313328,1777404638701,-500.0,8.63e-05,2]
[421313329,1777404638711,-500.0,8.63e-05,2]
[421313330,1777404638720,-500.0,8.63e-05,2]
[421313331,1777404638730,-500.0,8.63e-05,2]
[421313332,1777404638740,-500.0,8.63e-05,2]
[421313333,1777404638750,-500.0,8.63e-05,2]
[421313334,1777404638760,-500.0,8.63e-05,2]
[421313335,1777404638770,-582.78985019,8.63e-05,2]
[421313336,1777404638779,-290.24284134,8.904e-05,2]
[421313337,1777404638792,-390.79715866,8.904e-05,2]
[421313338,1777404638803,-390.0,9.041e-05,2]
[421313339,1777404638812,-250.0,9.041e-05,2]
[421313340,1777404638822,-300.0,9.041e-05,2]
[421313341,1777404638832,-252.28671625,9.041e-05,2]
[421313342,1777404638842,-681.04,9.178e-05,2]
[421313343,1777404638851,-1680.0,9.382e-05,2]
[421313344,1777404638873,-255.0,9.383e-05,2]
[421313345,1777404638883,-681.04,9.452e-05,2]
[421313346,1777404638893,-681.04,9.726e-05,2]
[421313347,1777404638903,-681.07,0.0001,2]
[421313348,1777404638913,-220.8954059,0.0001,2]
[421313349,1777404638923,-230.42230545,0.0001,2]
[421313350,1777404638933,-176.83214145,0.0001,2]
[421313351,1777404638943,-235.94721554,0.0001,2]
[421313352,1777404638953,-200.0,0.0001,2]
[421313353,1777404638962,-2351.0,0.0001032,2]
[421313354,1777404638972,-433.0,0.00010322,2]
[421313355,1777404638982,-200.0,0.00010548,2]
[421313356,1777404638992,-150.0,0.000108,2]
[421313357,1777404639001,-150.0,0.000108,2]
[421313358,1777404639012,-150.0,0.000108,2]
[421313359,1777404639023,-150.0,0.000108,2]
[421313360,1777404639033,-150.0,0.000108,2]
[421313361,1777404639043,-150.0,0.000108,2]
[421313362,1777404639052,-150.0,0.000108,2]
[421313363,1777404639062,-1478.30255713,0.000109,2]
[421313364,1777404639072,-1478.30255707,0.000109,2]
[421313365,1777404639082,-1478.30255707,0.000109,2]
[421313366,1777404639092,-1478.30255707,0.000109,2]
[421313367,1777404639102,-1478.30255707,0.000109,2]
[421313368,1777404639112,-500.0,0.00010959,2]
[421313369,1777404639122,-1478.30255707,0.00011055,2]
[421313370,1777404639131,-500.0,0.00011073,2]
[421313371,1777404639141,-500.0,0.00011073,2]
[421313372,1777404639151,-1940.6792293,0.00011099,2]
[421313373,1777404639162,-1940.67922925,0.00011099,2]
[421313374,1777404639172,-1940.67922925,0.00011099,2]
[421313375,1777404639181,-1940.67922925,0.00011099,2]
[421313376,1777404639191,-1940.67922925,0.00011099,2]
[421313377,1777404639201,-1940.67922925,0.00011099,2]
[421313378,1777404639210,-1940.67922925,0.00011099,2]
[421313379,1777404639220,-8899.86162502,0.00011099,2]
[421313380,1777404639230,-8899.861625,0.00011099,2]
[421313381,1777404639239,-8899.861625,0.00011099,2]
[421313382,1777404639255,-8899.861625,0.00011099,2]
[421313383,1777404639265,-8899.861625,0.00011099,2]
[421313384,1777404639275,-8899.861625,0.00011099,2]
[421313385,1777404639285,-8899.861625,0.00011099,2]
[421313386,1777404639295,-4560.11633451,0.00011242,2]
[421313387,1777404639309,-4339.74529049,0.00011242,2]
[421313388,1777404639319,-1940.67922925,0.00011242,2]
[421313389,1777404639329,-3292.0,0.00011352,2]
[421313390,1777404639339,-565.0,0.00011354,2]
[421313391,1777404639349,-1478.30255707,0.00011477,2]
[421313392,1777404639359,-6340.34754874,0.00011571,2]
[421313393,1777404639372,-1900.0,0.00011571,2]
[421313394,1777404639384,-376.75441401,0.00011571,2]
[421313395,1777404639396,-282.75966225,0.00011571,2]
[421313396,1777404639407,-186.97612706,0.00011571,2]
[421313397,1777404639419,-974.33676083,0.00011571,2]
[421313398,1777404639431,-720.01455073,0.00011571,2]
[421313399,1777404639444,-59.35179063,0.00011571,2]
[421313400,1777404639454,-5000.0,0.00011585,2]
[421313401,1777404639465,-472.9383722,0.00011585,2]
[421313402,1777404639475,-181.72593854,0.000116,3]
[421313403,1777404639485,-250.0,0.000116,2]
[421313404,1777404639495,-117.12484345,0.00011684,2]
[421313405,1777404639508,-48.94553458,0.00011684,2]
[421313406,1777404639518,-500.0,0.00011684,2]
[421313407,1777404639529,-500.0,0.00011684,2]
[421313408,1777404639539,-606.25847082,0.00011684,2]
[421313409,1777404639549,-206.80175813,0.00011684,2]
[421313410,1777404639558,-500.0,0.00011684,2]
[421313411,1777404639568,-342.79583655,0.00011684,2]
[421313412,1777404639578,-857.26538625,0.00011685,2]
[421313413,1777404639590,-1678.19997191,0.00011685,2]
[421313414,1777404639603,-580.25735484,0.00011685,2]
[421313415,1777404639612,-1314.16574898,0.00011685,2]
[421313416,1777404639624,-6000.0,0.00011685,2]
[421313417,1777404639641,-9662.93463532,0.00011685,2]
[421313418,1777404639654,-815.91901641,0.00011685,2]
[421313419,1777404639665,-539.89872266,0.00011685,2]
[421313420,1777404639678,-879.54028418,0.00011685,2]
[421313421,1777404639690,-347.25659751,0.00011685,2]
[421313422,1777404639703,-363.98,0.00011685,2]
[421313423,1777404639714,-1051.74850456,0.00011685,2]
[421313440,1777404643296,-827.75733248,0.00011685,2]
[421313441,1777404643308,-520.45652898,0.00011685,2]
[421313455,1777404645981,-1434.61950838,0.00011685,2]
[421313456,1777404646090,-723.27390214,0.00011685,2]
[421313457,1777404646255,-1180.95304529,0.00011685,2]
[421313458,1777404646267,-6971.14555602,0.00011685,2]
[421313459,1777404646279,-341.68629724,0.00011685,2]
[421313471,1777405832009,-280.0,8.219e-05,2]
[421313472,1777405832020,-505.81555945,8.53e-05,2]
[421313473,1777405832032,-1014.06504055,8.53e-05,2]
[421313474,1777405832043,-937.80706067,0.00010584,2]
[421313475,1777405832068,-1232.49293933,0.00010584,2]
[421313476,1777405832078,-203.172,0.00010584,2]
[421313477,1777405832089,-170.32704372,0.00010698,2]
[421313478,1777405832223,-1029.67295628,0.00010698,2]
[421313479,1777405832232,-241.46865548,0.00010699,2]
[421313480,1777405832245,-58.53134452,0.00010699,2]
[421313481,1777405832254,-239.93986053,0.000107,2]
[421313482,1777405832264,-432.55500624,0.000107,2]
[421313483,1777405832273,-128.75878571,0.000107,2]
[421313484,1777405832285,-401.97698017,0.000107,2]
[421313485,1777405832295,-584.21745959,0.000107,2]
[421313486,1777405832307,-73.37733191,0.000107,2]
[421313487,1777405832317,-625.17015195,0.000107,2]
[421313488,1777405832327,-167.89790921,0.000107,2]
[421313489,1777405832337,-6081.14094482,0.0001079,2]
[421313490,1777405832347,-200.0,0.00010794,2]
[421313491,1777405832356,-150.0,0.00010798,2]
[421313492,1777405832366,-163.69637829,0.00010799,2]
[421313493,1777405832375,-175.86553891,0.00010799,2]
[421313494,1777405832385,-500.0,0.00010799,2]
[421313495,1777405832394,-500.0,0.00010799,2]
[421313496,1777405832404,-500.0,0.00010799,2]
[421313497,1777405832416,-500.0,0.00010799,2]
[421313498,1777405832426,-500.0,0.00010799,2]
[421313499,1777405832435,-500.0,0.00010799,2]
[421313500,1777405832444,-500.0,0.00010799,2]
[421313501,1777405832454,-500.0,0.00010799,2]
[421313502,1777405832463,-500.0,0.00010799,2]
[421313503,1777405832473,-500.0,0.00010799,2]
[421313504,1777405832483,-245.68199677,0.00010799,2]
[421313505,1777405832493,-500.0,0.00010799,2]
[421313506,1777405832503,-500.0,0.00010799,2]
[421313507,1777405832513,-500.0,0.00010799,2]
[421313508,1777405832523,-500.0,0.00010799,2]
[421313509,1777405832532,-500.0,0.00010799,2]
[421313510,1777405832541,-500.0,0.00010799,2]
[421313511,1777405832551,-500.0,0.00010799,2]
[421313512,1777405832560,-500.0,0.00010799,2]
[421313513,1777405832569,-500.0,0.00010799,2]
[421313514,1777405832579,-500.0,0.00010799,2]
[421313515,1777405832589,-500.0,0.00010799,2]
[421313516,1777405832598,-500.0,0.00010799,2]
[421313517,1777405832608,-500.0,0.00010799,2]
[421313518,1777405832618,-500.0,0.00010799,2]
[421313519,1777405832627,-500.0,0.00010799,2]
[421313520,1777405832636,-500.0,0.00010799,2]
[421313521,1777405832645,-500.0,0.00010799,2]
[421313522,1777405832655,-500.0,0.00010799,2]
[421313523,1777405832664,-500.0,0.00010799,2]
[421313524,1777405832674,-500.0,0.00010799,2]
[421313525,1777405832683,-371.44397303,0.00010799,2]
[421313526,1777405832693,-500.0,0.00010799,2]
[421313527,1777405832703,-500.0,0.00010799,2]
[421313528,1777405832712,-449.48,0.00010799,2]
[421313529,1777405832721,-1157.22138104,0.00010799,3]
[421313530,1777405832731,-380994.02610304,0.000108,2]
[421313531,1777405832743,-16712.08299774,0.000108,2]
[421313537,1777405838169,-11979.75265951,0.000108,2]
[421313538,1777405838181,-921.27653065,0.000108,2]
[421313539,1777405838222,-1318.75819923,0.000108,2]
[421313540,1777405838383,-451.15504761,0.000108,2]
[421313541,1777405838435,-4134.16891772,0.000108,2]
[421313645,1777405840536,-3487.8893824,0.000108,2]
[421313646,1777405840588,-2269.44115513,0.000108,2]
[421313656,1777405846297,-4739.2710069,0.000108,2]
[421313657,1777405846405,-460.0,0.000108,2]
[421313658,1777405846459,-746.40000207,0.000108,2]
[421313659,1777405846513,-781.7,0.000108,2]
[421313692,1777407032616,-280.0,8.219e-05,2]
[421313695,1777407032626,-206.96224548,9.041e-05,2]
[421313698,1777407032635,-25.93860618,9.616e-05,2]
[421313701,1777407032647,-124.06139382,9.616e-05,2]
[421313704,1777407032657,-150.0,9.616e-05,2]
[421313707,1777407032668,-150.0,9.616e-05,2]
[421313710,1777407032677,-150.0,9.973e-05,2]
[421313713,1777407032686,-339.01915558,0.0001,2]
[421313716,1777407032696,-150.0,0.00010329,2]
[421313719,1777407032705,-221.10829277,0.00010485,2]
[421313722,1777407032718,-78.89170723,0.00010485,2]
[421313725,1777407032727,-1200.0,0.00010485,2]
[421313728,1777407032737,-1155.90011374,0.00010486,2]
[421313732,1777407032752,-341.348914,0.00010486,2]
[421313734,1777407032767,-447.74733473,0.00010486,2]
[421313736,1777407032779,-215.37863753,0.00010486,2]
[421313737,1777407032788,-193.964,0.00010486,2]
[421313738,1777407032798,-50712.6716832,0.00010599,2]
[421313739,1777407032810,-2586.05206249,0.00010599,2]
[421313740,1777407032821,-2642.63241699,0.00010599,2]
[421313741,1777407032832,-985.20374786,0.00010599,2]
[421313742,1777407032845,-3459.21954555,0.00010599,2]
[421313743,1777407032856,-719.52552339,0.00010599,2]
[421313744,1777407032868,-1159.94357071,0.00010599,2]
[421313785,1777407038368,-11991.61838017,0.00010599,2]
[421313786,1777407038421,-4081.02340894,0.00010599,2]
[421313787,1777407038476,-1000.18778537,0.00010599,2]
[421313788,1777407038488,-865.69,0.00010599,2]
[421313789,1777407038582,-789.01074098,0.00010599,2]
[421313790,1777407038594,-1401.9124575,0.00010599,2]
[421313791,1777407038605,-469.10245822,0.00010599,2]
[421313792,1777407038617,-1057.47540344,0.00010599,2]
[421313800,1777407040521,-60587.68521519,0.00010599,2]
[421313801,1777407040532,-150.0,0.00010599,2]
[421313802,1777407040542,-300.0,0.00010599,2]
[421313803,1777407040553,-5342.2257792,0.000106,2]
[421313804,1777407040563,-5000.0,0.000106,2]
[421313805,1777407040577,-164.25919624,0.000106,2]
[421313806,1777407040587,-1406.27453936,0.000106,2]
[421313807,1777407040598,-29999.99,0.000106,2]
[421313808,1777407040608,-700.0,0.00010638,2]
[421313809,1777407040619,-150.0,0.00010685,2]
[421313810,1777407040630,-150.863695,0.00010685,2]
[421313811,1777407040640,-454.6082771,0.00010689,2]
[421313812,1777407040651,-173.0,0.00010693,2]
[421313813,1777407040661,-200.0,0.00010694,2]
[421313814,1777407040670,-500.0,0.00010698,2]
[421313815,1777407040680,-465.72395313,0.00010698,2]
[421313816,1777407040691,-500.0,0.00010698,2]
[421313817,1777407040701,-500.0,0.00010698,2]
[421313818,1777407040711,-500.0,0.00010698,2]
[421313819,1777407040721,-500.0,0.00010698,2]
[421313820,1777407040732,-500.0,0.00010698,2]
[421313821,1777407040742,-500.0,0.00010698,2]
[421313822,1777407040753,-500.0,0.00010698,2]
[421313823,1777407040764,-500.0,0.00010698,2]
[421313824,1777407040774,-500.0,0.00010698,2]
[421313825,1777407040785,-500.0,0.00010698,2]
[421313826,1777407040796,-500.0,0.00010698,2]
[421313827,1777407040808,-500.0,0.00010698,2]
[421313828,1777407040818,-500.0,0.00010698,2]
[421313829,1777407040830,-500.0,0.00010698,2]
[421313830,1777407040840,-500.0,0.00010698,2]
[421313831,1777407040850,-500.0,0.00010698,2]
[421313832,1777407040862,-500.0,0.00010698,2]
[421313833,1777407040873,-500.0,0.00010698,2]
[421313834,1777407040883,-500.0,0.00010698,2]
[421313835,1777407040893,-500.0,0.00010698,2]
[421313836,1777407040903,-500.0,0.00010698,2]
[421313837,1777407040912,-500.0,0.00010698,2]
[421313838,1777407040922,-500.0,0.00010698,2]
[421313839,1777407040932,-500.0,0.00010698,2]
[421313840,1777407040942,-500.0,0.00010698,2]
[421313841,1777407040952,-500.0,0.00010698,2]
[421313842,1777407040963,-500.0,0.00010698,2]
[421313843,1777407040978,-461.72501692,0.00010698,2]
[421313844,1777407040987,-500.0,0.00010698,2]
[421313845,1777407040997,-500.0,0.00010698,2]
[421313846,1777407041007,-308367.3383,0.00010699,2]
[421313847,1777407041017,-460.0,0.00010699,2]
[421313848,1777407041027,-250.0,0.00010699,2]
[421313849,1777407041037,-21715.8895,0.000107,2]
[421313850,1777407041047,-1434.4731,0.000107,2]
[421313851,1777407041059,-84871.80658534,0.000107,2]
[421313852,1777407041069,-194.32,0.00010746,2]
[421313853,1777407041080,-225.06,0.0001079,2]
[421313854,1777407041090,-347.34669346,0.00010799,2]
[421313855,1777407041100,-589.95708558,0.00010799,2]
[421313856,1777407041109,-500.0,0.00010799,2]
[421313857,1777407041119,-624.38092958,0.00010799,2]
[421313858,1777407041130,-6213.4789309,0.000108,2]
[421313859,1777407041140,-2852.2444376,0.000108,2]
[421313860,1777407041150,-43697.2104356,0.000108,2]
[421313861,1777407041160,-7869.1098351,0.000108,2]
[421313862,1777407041170,-200.0,0.000108,2]
[421313863,1777407041182,-151.0,0.000108,2]
[421313864,1777407041192,-151.0,0.000108,2]
[421313865,1777407041202,-200.0,0.000108,2]
[421313866,1777407041211,-506.85287325,0.000108,2]
[421313867,1777407041221,-156829.1256748,0.000108,2]
[421313869,1777407041231,-151.0,0.000108,2]
[421313871,1777407041241,-189.154234,0.000108,2]
[421313872,1777407041251,-189.154234,0.000108,2]
[421313873,1777407041261,-189.154234,0.000108,2]
[421313874,1777407041271,-189.154234,0.000108,2]
[421313875,1777407041280,-17329.7887624,0.000108,2]
[421313876,1777407041291,-1475.169328,0.000108,2]
[421313877,1777407041301,-1475.169328,0.000108,2]
[421313878,1777407041312,-1475.169328,0.000108,2]
[421313879,1777407041322,-1475.169328,0.000108,2]
[421313880,1777407041332,-150.0,0.000108,3]
[421313881,1777407041343,-200.0,0.000108,2]
[421313882,1777407041353,-1594.126078,0.000108,2]
[421313883,1777407041367,-160.0,0.000108,3]
[421313884,1777407041377,-1594.126078,0.000108,2]
[421313885,1777407041387,-1594.126078,0.000108,2]
[421313886,1777407041398,-1594.126078,0.000108,2]
[421313887,1777407041409,-173.0,0.000108,3]
[421313888,1777407041420,-1594.126078,0.000108,2]
[421313889,1777407041429,-1594.126078,0.000108,2]
[421313890,1777407041440,-1594.126078,0.000108,2]
[421313891,1777407041449,-1594.126078,0.000108,2]
[421313892,1777407041459,-151.0,0.000108,2]
[421313893,1777407041469,-151.0,0.000108,2]
[421313894,1777407041479,-151.0,0.000108,2]
[421313895,1777407041489,-151.0,0.000108,2]
[421313896,1777407041499,-151.0,0.000108,2]
[421313897,1777407041509,-151.0,0.000108,2]
[421313898,1777407041519,-151.0,0.000108,2]
[421313899,1777407041529,-151.0,0.000108,2]
[421313900,1777407041539,-151.0,0.000108,2]
[421313901,1777407041549,-151.0,0.000108,2]
[421313902,1777407041559,-151.0,0.000108,2]
[421313903,1777407041569,-151.0,0.000108,2]
[421313904,1777407041580,-151.0,0.000108,2]
[421313905,1777407041590,-151.0,0.000108,2]
[421313906,1777407041599,-151.0,0.000108,2]
[421313907,1777407041609,-151.0,0.000108,2]
[421313908,1777407041620,-233.442321,0.000108,2]
[421313909,1777407041630,-152.0,0.00010829,7]
[421313910,1777407041640,-200.0,0.00010908,2]
[421313911,1777407041650,-200.0,0.00010908,2]
[421313912,1777407041660,-500.0,0.00010958,2]
[421313913,1777407041670,-500.0,0.00010959,2]
[421313914,1777407041683,-151.0,0.00010959,2]
[421313915,1777407041692,-151.0,0.00010959,2]
[421313916,1777407041703,-585.0,0.00010959,2]
[421313917,1777407041713,-585.0,0.00010959,2]
[421313918,1777407041723,-585.0,0.00010959,2]
[421313919,1777407041733,-585.0,0.00010959,2]
[421313920,1777407041742,-179.51835459,0.00010959,2]
[421313921,1777407041752,-164.56,0.00010989,2]
[421313922,1777407041761,-200.0,0.00011017,2]
[421313923,1777407041771,-1958.77540673,0.00011099,2]
[421313924,1777407041784,-1958.77540671,0.00011099,2]
[421313925,1777407041795,-1958.77540671,0.00011099,2]
[421313926,1777407041805,-1958.77540671,0.00011099,2]
[421313927,1777407041815,-2618.34391491,0.00011099,2]
[421313928,1777407041825,-2618.34391484,0.00011099,2]
[421313929,1777407041835,-2618.34391484,0.00011099,2]
[421313930,1777407041844,-2618.34391484,0.00011099,2]
[421313931,1777407041854,-1958.77540671,0.00011177,2]
[421313932,1777407041864,-2618.34391484,0.00011177,2]
[421313933,1777407041873,-200.0,0.00011242,2]
[421313934,1777407041883,-164.25919623,0.0001125,2]
[421313935,1777407041893,-1958.77540671,0.00011322,2]
[421313936,1777407041903,-2618.34391484,0.00011322,2]
[421313937,1777407041913,-500.0,0.00011373,2]
[421313938,1777407041923,-500.53133547,0.00011373,2]
[421313939,1777407041933,-151.0,0.00011387,2]
[421313940,1777407041943,-167400.5658229,0.0001139,2]
[421313941,1777407041952,-377.5276001,0.0001139,2]
[421313942,1777407041962,-151.0,0.0001139,2]
[421313943,1777407041972,-151.0,0.0001139,2]
[421313944,1777407041981,-151.0,0.0001139,2]
[421313945,1777407041991,-585.0,0.0001139,2]
[421313946,1777407042001,-585.0,0.0001139,2]
[421313947,1777407042011,-585.0,0.0001139,2]
[421313948,1777407042021,-585.0,0.0001139,2]
[421313949,1777407042031,-151.0,0.0001139,2]
[421313950,1777407042040,-189.154234,0.0001139,2]
[421313951,1777407042050,-189.154234,0.0001139,2]
[421313952,1777407042060,-189.154234,0.0001139,2]
[421313953,1777407042070,-189.154234,0.0001139,2]
[421313954,1777407042080,-1475.169328,0.0001139,2]
[421313955,1777407042090,-1475.169328,0.0001139,2]
[421313956,1777407042100,-1475.169328,0.0001139,2]